bitfinex/quotes_ETHUSD_20230830
["timestamp","ask_amount","ask_price","bid_price","bid_amount"]
[1693406480316,26.86289722,1711.8,1711.7,2.0]
[1693406480479,29.71089722,1711.8,1711.4,2.0]
[1693406480680,5.87348065,1711.7,1711.4,2.0]
[1693406480887,23.24892065,1711.6,1711.4,2.0]
[1693406481230,5.32489206,1711.5,1711.4,2.0]
[1693406481527,25.73032345,1711.5,1711.2,2.0]
[1693406481732,2.87348065,1711.4,1711.2,2.0]
[1693406482029,23.40401065,1711.3,1711.0,2.0]
[1693406482213,5.21388172,1711.2,1711.0,2.0]
[1693406482454,17.53257,1711.1,1711.0,2.0]
[1693406482766,23.40605065,1711.1,1711.0,2.0]
[1693406483332,23.40951304,1711.1,1711.0,2.0]
[1693406484222,5.84765239,1711.1,1711.0,2.0]
[1693406485027,11.69184239,1711.1,1711.0,2.0]
[1693406485241,21.70520163,1711.1,1711.0,2.0]
[1693406485408,21.70520163,1711.1,1710.5,5.846]
[1693406485409,21.70520163,1711.1,1710.8,2.0]
[1693406485614,21.70520163,1711.1,1711.0,2.0]
[1693406485857,21.70520163,1711.1,1710.8,2.0]
[1693406486099,5.04400081,1711.0,1710.8,2.0]
[1693406486223,17.53461,1710.9,1710.8,2.0]
[1693406486571,11.68974,1710.9,1710.8,2.0]
[1693406486774,8.13520239,1711.1,1711.0,2.0]
[1693406487063,8.72128304,1711.1,1711.0,2.0]
[1693406487949,14.56559304,1711.1,1711.0,2.0]
[1693406488142,16.60652434,1711.1,1711.0,2.0]
[1693406488455,14.56559304,1711.1,1711.0,2.0]
[1693406488616,8.72125304,1711.1,1711.0,2.0]
[1693406489275,20.40987304,1711.1,1711.0,2.0]
[1693406489567,23.40963304,1711.1,1710.8,2.0]
[1693406489771,17.53461,1710.9,1710.8,2.0]
[1693406489912,20.40809065,1710.9,1710.8,2.0]
[1693406490319,20.41154449,1710.9,1710.8,2.0]
[1693406492025,20.41154449,1710.9,1710.6,2.0]
[1693406492381,2.87348065,1710.8,1710.6,2.0]
[1693406492521,11.69112,1710.7,1710.6,2.0]
[1693406492720,14.56460065,1710.7,1710.6,2.0]
[1693406492971,8.71904065,1710.7,1710.6,2.0]
[1693406493386,14.56803531,1710.7,1710.6,2.0]
[1693406493713,21.87003838,1710.7,1710.6,2.0]
[1693406494417,21.87003838,1710.7,1710.4,2.1]
[1693406494644,2.87348065,1710.6,1710.4,2.1]
[1693406494861,17.53872,1710.5,1710.4,2.1]
[1693406495121,17.53872,1710.5,1710.1,5.85442]
[1693406495122,6.12,1710.4,1710.1,0.007]
[1693406495494,6.12,1710.4,1710.0,2.1]
[1693406495495,23.26326065,1710.2,1710.0,0.1]
[1693406495622,23.26326065,1710.2,1709.5,0.1]
[1693406495623,3.0,1709.9,1709.5,2.1]
[1693406495821,25.74263672,1710.1,1709.5,2.1]
[1693406495822,2.87348065,1709.6,1709.5,2.1]
[1693406496060,16.9622277,1709.6,1709.5,2.1]
[1693406496247,0.003355,1709.6,1709.5,2.1]
[1693406496577,1e-08,1709.6,1709.5,7.94966]
[1693406496758,1e-08,1709.6,1709.5,27.383719]
[1693406496934,1e-08,1709.6,1709.5,27.96577879]
[1693406497328,11.69486,1710.2,1710.1,2.0]
[1693406497548,5.84668,1710.4,1710.3,2.0]
[1693406497859,4.77387357,1710.5,1710.3,7.84692]
[1693406497860,5.84641,1710.5,1710.3,7.84692]
[1693406498225,11.69142,1710.7,1710.5,2.0]
[1693406498426,8.71939065,1710.6,1710.5,2.0]
[1693406498779,21.86810172,1710.6,1710.3,2.0]
[1693406499089,21.86810172,1710.6,1710.1,2.0]
[1693406499090,2.87348065,1710.5,1710.1,2.0]
[1693406499392,26.3866,1710.4,1710.1,2.0]
[1693406499676,29.26008065,1710.4,1710.1,2.0]
[1693406500076,17.54178,1710.2,1710.1,2.0]
[1693406500277,25.46943865,1710.2,1710.1,2.0]
[1693406501247,25.4741614,1710.2,1709.7,2.0]
[1693406501452,17.54385,1710.0,1709.7,2.0]
[1693406501686,11.69726,1709.8,1709.7,2.0]
[1693406501909,14.57074065,1709.8,1709.7,2.0]
[1693406502453,20.41937065,1709.8,1709.7,2.0]
[1693406502652,23.04615972,1709.8,1709.7,2.0]
[1693406502882,23.04615972,1709.8,1709.5,2.05]
[1693406503080,11.69864,1709.6,1709.5,0.05]
[1693406503305,32.11876065,1709.6,1709.5,0.05]
[1693406503490,32.11876065,1709.6,1708.9,2.0210995]
[1693406503491,32.70082044,1709.6,1708.9,2.0210995]
[1693406503687,2.87348065,1709.2,1708.9,2.0210995]
[1693406503886,20.42555065,1709.2,1708.9,2.0210995]
[1693406504384,17.57486065,1709.2,1709.1,2.0099407]
[1693406504571,9.14245513,1709.2,1709.1,2.0099407]
[1693406505170,0.41828448,1709.2,1709.1,2.0099407]
[1693406505406,0.41828448,1709.2,1709.1,26.46915977]
[1693406505715,5.84916,1709.7,1709.6,2.0]
[1693406505910,8.72264065,1709.7,1709.6,2.0]
[1693406506415,14.57142065,1709.7,1709.6,2.0]
[1693406506778,20.42039065,1709.7,1709.6,2.0]
[1693406507094,20.42039065,1709.7,1709.1,8.46516977]
[1693406507095,3.0,1709.4,1709.1,5.85096]
[1693406507409,2.87348065,1709.7,1709.1,17.55295]
[1693406507820,20.36845,1709.9,1709.1,20.40095]
[1693406508023,23.24193065,1709.9,1709.2,6.6]
[1693406508213,23.24193065,1709.9,1709.4,17.54991]
[1693406508521,9.0,1709.5,1709.2,5.85054]
[1693406508752,9.0,1709.5,1709.0,5.85127]
[1693406508753,2.87348065,1709.4,1709.0,5.85127]
[1693406508923,5.85041,1709.3,1709.0,5.85127]
[1693406509111,9.0,1709.1,1708.8,5.85201]
[1693406509421,14.85123,1709.1,1708.8,5.85201]
[1693406509625,14.85123,1709.1,1708.8,12.874481]
[1693406509998,20.70246,1709.1,1708.8,5.85201]
[1693406510198,20.70246,1709.1,1708.5,5.8529]
[1693406510199,11.70356,1708.9,1708.5,5.8529]
[1693406510424,3.0,1708.9,1708.6,11.70538]
[1693406510723,3.0,1708.9,1708.6,17.55812]
[1693406511040,14.85109,1709.1,1708.6,17.55812]
[1693406511240,17.72457065,1709.1,1708.8,11.65403]
[1693406511450,3.0,1708.9,1708.8,11.65403]
[1693406511597,3.0,1708.9,1708.8,5.80199]
[1693406511795,5.85143,1709.0,1708.8,5.80199]
[1693406512052,3.0,1708.9,1708.8,5.80199]
[1693406512188,3.0,1708.9,1708.8,7.1430062]
[1693406512388,3.0,1708.9,1708.7,11.7046]
[1693406512694,20.57789065,1708.8,1708.5,5.85292]
[1693406512898,20.57789065,1708.8,1708.4,5.85324]
[1693406513097,2.87348065,1708.7,1708.3,0.1]
[1693406513299,11.70686,1708.4,1708.3,0.1]
[1693406513590,23.08978365,1708.4,1708.3,0.1]
[1693406513795,26.08978365,1708.4,1708.3,0.1]
[1693406514414,2.34373,1708.8,1708.3,0.1]
[1693406514629,5.85223,1708.8,1708.7,2.0]
[1693406514927,14.57758065,1708.8,1708.5,2.0]
[1693406515226,20.70548,1708.6,1708.5,2.0]
[1693406515427,9.0,1708.6,1708.5,2.0]
[1693406515627,14.8519,1708.9,1708.8,2.0]
[1693406515829,9.0,1708.9,1708.8,2.0]
[1693406516031,5.85171,1708.9,1708.8,2.0]
[1693406516229,30.59891965,1708.9,1708.8,2.0]
[1693406516929,14.85274,1708.6,1708.5,2.0]
[1693406517126,17.72622065,1708.6,1708.5,2.0]
[1693406517329,29.43170065,1708.6,1708.3,0.1]
[1693406517517,26.56029,1708.4,1708.3,0.1]
[1693406517831,29.43377065,1708.4,1708.3,0.1]
[1693406518130,17.72691065,1708.4,1708.3,0.1]
[1693406518331,23.58034065,1708.4,1708.3,0.1]
[1693406518719,17.72691065,1708.4,1708.3,0.1]
[1693406518902,11.87348065,1708.4,1708.3,0.1]
[1693406519098,17.72691065,1708.4,1708.3,0.1]
[1693406519298,31.79584635,1708.4,1708.3,0.1]
[1693406519500,29.43377065,1708.4,1708.3,0.1]
[1693406519711,29.43377065,1708.4,1708.2,2.0]
[1693406519712,9.0,1707.8,1707.7,2.0]
[1693406520009,9.0,1707.7,1707.6,2.0]
[1693406520220,9.91613979,1708.3,1708.0,2.0]
[1693406520221,8.85429,1708.2,1708.0,2.0]
[1693406520537,11.7089,1708.1,1708.0,2.0]
[1693406520749,0.32859052,1708.4,1708.2,2.0]
[1693406520919,0.32859052,1708.4,1708.3,11.70754]
[1693406521534,14.85328,1708.5,1708.4,2.0]
[1693406521700,11.52,1708.6,1708.4,13.70686]
[1693406522007,5.85215,1708.8,1708.7,2.0]
[1693406522536,2.1626,1709.2,1709.1,2.0]
[1693406522537,9.0,1709.2,1709.1,2.0]
[1693406522957,14.85069,1709.2,1709.1,2.0]
[1693406523101,9.0,1709.2,1709.1,2.0]
[1693406523456,14.85069,1709.2,1709.1,2.0]
[1693406523959,5.85002,1709.4,1709.3,2.0]
[1693406524260,8.72350065,1709.4,1709.3,2.0]
[1693406524759,5.85002,1709.4,1709.3,2.0]
[1693406525336,9.0,1709.5,1709.3,13.70068]
[1693406525535,6.0,1709.5,1709.3,15.070748]
[1693406525864,14.84918,1709.7,1709.6,2.0]
[1693406526060,23.57189065,1709.7,1709.6,2.0]
[1693406526561,17.72266065,1709.7,1709.6,2.0]
[1693406527091,9.0,1709.9,1709.8,2.0]
[1693406527263,9.0,1710.1,1709.8,2.0]
[1693406527445,9.0,1710.1,1710.0,2.0]
[1693406527630,9.0,1710.1,1709.7,2.0]
[1693406527631,9.0,1710.0,1709.7,2.0]
[1693406527822,9.0,1709.8,1709.5,5.84939]
[1693406528027,5.84897,1709.7,1709.5,5.84966]
[1693406528228,5.84897,1709.7,1709.4,11.69955]
[1693406528553,5.84897,1709.7,1709.4,5.84971]
[1693406528753,14.84877,1709.8,1709.4,11.69971]
[1693406528976,17.72225065,1709.8,1709.4,13.4547]
[1693406529842,9.0,1709.5,1709.3,5.85019]
[1693406530158,20.69944,1709.5,1709.1,5.8509]
[1693406530564,14.84972,1709.5,1709.1,11.70193]
[1693406530767,14.84972,1709.5,1709.1,17.55296]
[1693406531343,9.0,1709.5,1709.1,23.67296]
[1693406531538,11.72252065,1709.7,1709.2,2.367296]
[1693406531737,11.72252065,1709.7,1709.3,17.55068]
[1693406532138,9.0,1709.4,1709.2,8.217826]
[1693406532470,9.0,1709.4,1709.2,5.85053]
[1693406532637,20.70001,1709.4,1709.0,5.85129]
[1693406532841,9.0,1709.2,1709.0,11.70266]
[1693406533066,11.85,1709.4,1709.0,17.55403]
[1693406533455,6.0,1709.4,1709.0,17.55403]
[1693406533658,3.0,1709.5,1709.1,1.755403]
[1693406533856,5.87348065,1709.5,1709.2,17.55186]
[1693406534069,6.0,1709.3,1709.1,5.85076]
[1693406534271,6.0,1709.3,1709.2,5.85066]
[1693406534445,9.0,1709.5,1709.2,5.85069]
[1693406534647,0.22547405,1709.3,1709.2,17.55207]
[1693406534869,0.22547405,1709.3,1709.2,19.307277]
[1693406535046,17.72382065,1709.3,1709.0,5.8512]
[1693406535246,6.0,1709.1,1709.0,5.8512]
[1693406535673,8.85034,1709.3,1709.0,11.50257]
[1693406535879,11.8501,1709.4,1709.0,20.20194]
[1693406535880,6.0,1709.4,1709.0,20.20194]
[1693406536178,6.0,1709.3,1709.0,11.50257]
[1693406536342,6.0,1709.1,1709.0,5.85137]
[1693406536548,6.0,1709.1,1709.0,11.70274]
[1693406537142,6.0,1709.1,1709.0,17.55411]
[1693406537347,11.85103,1709.1,1708.9,5.85148]
[1693406537548,6.0,1708.8,1708.6,5.85268]
[1693406537749,3.0,1708.7,1708.5,11.7058]
[1693406538151,6.0,1708.8,1708.5,11.7058]
[1693406538482,8.249,1709.0,1708.5,23.67888]
[1693406538671,6.0,1709.0,1708.5,23.67888]
[1693406538873,6.0,1709.0,1708.6,2.367888]
[1693406539074,6.0,1709.0,1708.7,17.55699]
[1693406540498,9.0,1709.3,1709.2,2.0]
[1693406540786,9.0,1709.3,1709.2,7.85043]
[1693406540948,17.69958,1709.5,1709.4,2.0]
[1693406541152,6.0,1709.7,1709.6,2.0]
[1693406541452,6.0,1709.7,1709.6,7.84919]
[1693406541652,12.74897,1709.7,1709.6,2.0]
[1693406541849,18.59794,1709.7,1709.6,2.0]
[1693406542606,6.0,1709.4,1709.3,2.0]
[1693406543389,6.0,1709.4,1709.3,13.70068]
[1693406543686,6.74913,1709.7,1709.4,2.0]
[1693406543687,6.0,1709.7,1709.4,2.0]
[1693406543885,9.0,1709.5,1709.4,7.84981]
[1693406544410,9.0,1709.5,1709.4,2.0]
[1693406544906,20.69932,1709.5,1709.4,2.0]
[1693406546104,9.0,1709.5,1709.4,2.0]
[1693406546453,6.0,1709.7,1709.6,2.0]
[1693406546594,8.87348065,1709.7,1709.6,2.0]
[1693406546776,6.0,1709.7,1709.6,7.84932]
[1693406547117,6.0,1709.7,1709.6,2.0]
[1693406547409,21.47142065,1709.7,1709.6,2.0]
[1693406547611,27.32039065,1709.7,1709.6,2.0]
[1693406547964,30.32039065,1709.7,1709.6,2.0]
[1693406548166,9.0,1709.5,1709.4,2.0]
[1693406548473,30.32246065,1709.5,1709.4,2.0]
[1693406548860,9.0,1709.2,1709.1,2.0]
[1693406549207,23.57486065,1709.2,1709.1,2.0]
[1693406549413,23.57486065,1709.2,1708.9,2.0]
[1693406549617,9.0,1709.0,1708.9,2.0]
[1693406549920,9.0,1708.8,1708.5,2.0]
[1693406550071,6.0,1708.6,1708.5,2.0]
[1693406550419,6.0,1708.6,1708.5,7.85308]
[1693406550768,6.0,1708.6,1708.5,2.0]
[1693406550769,17.72622065,1708.6,1708.5,2.0]
[1693406551491,9.0,1708.6,1708.4,5.85321]
[1693406551699,6.0,1708.8,1708.5,17.55924]
[1693406551892,6.0,1708.8,1708.5,20.40724]
[1693406552519,6.0,1709.0,1708.5,27.10929979]
[1693406552686,0.22393522,1709.1,1708.7,2.848]
[1693406552879,0.22393522,1709.1,1708.8,17.55597]
[1693406553480,0.22393522,1709.1,1708.8,19.596367]
[1693406553795,11.85071,1709.2,1708.8,19.596367]
[1693406554010,11.85071,1709.2,1708.8,25.716367]
[1693406554011,0.23164225,1709.0,1708.8,25.716367]
[1693406554347,6.0,1709.2,1708.8,25.716367]
[1693406554552,6.0,1709.2,1708.9,2.5716367]
[1693406554719,5.9,1709.2,1709.0,17.55411]
[1693406555099,5.9,1709.4,1709.0,17.55411]
[1693406555294,5.9,1709.4,1709.0,23.67411]
[1693406555492,5.8494,1709.6,1709.1,2.367411]
[1693406555493,5.9,1709.6,1709.1,2.367411]
[1693406555700,5.9,1709.6,1709.2,17.55153]
[1693406555919,5.9,1709.4,1709.2,17.55153]
[1693406556204,5.9,1709.6,1709.2,17.55153]
[1693406556408,5.9,1709.8,1709.4,17.54962]
[1693406556608,5.9,1709.8,1709.4,19.29004697]
[1693406556845,5.9,1710.0,1709.4,25.41004697]
[1693406557068,5.9,1709.7,1709.4,25.41004697]
[1693406557242,8.72157065,1710.0,1709.4,25.41004697]
[1693406557243,20.46967065,1710.0,1709.4,25.41004697]
[1693406557534,5.9,1709.7,1709.4,25.41004697]
[1693406557711,5.9,1709.7,1709.6,11.69864]
[1693406559061,5.9,1709.7,1709.6,5.84932]
[1693406559423,5.9,1709.7,1709.4,5.84983]
[1693406559623,11.74907,1709.7,1709.4,5.84978]
[1693406559823,17.59814,1709.7,1709.4,5.84978]
[1693406560059,20.242843,1709.7,1709.4,5.84978]
[1693406560225,14.393773,1709.7,1709.4,5.84978]
[1693406560425,14.393773,1709.7,1709.4,11.69978]
[1693406560843,17.26725365,1709.7,1709.4,11.69978]
[1693406562860,14.74966,1709.5,1709.3,5.85034]
[1693406563059,5.9,1709.3,1709.2,5.85047]
[1693406563267,5.9,1709.3,1709.2,11.70084]
[1693406563566,8.9,1709.5,1709.2,17.55153]
[1693406564455,8.9,1709.5,1709.4,2.0]
[1693406564625,8.9,1709.5,1709.4,7.85]
[1693406564828,9.11802537,1709.5,1709.4,13.7]
[1693406565362,9.11802537,1709.5,1709.4,19.55]
[1693406565563,0.21802537,1709.5,1709.4,21.505004]
[1693406565856,5.9,1709.7,1709.6,2.0]
[1693406566175,5.9,1709.7,1709.6,13.69864]
[1693406567365,5.9,1709.7,1709.6,2.0]
[1693406567982,5.9,1709.7,1709.6,7.84932]
[1693406571270,2.3104,1709.9,1709.8,2.0]
[1693406571604,5.9,1710.1,1710.0,2.0]
[1693406571768,5.9,1710.1,1710.0,13.6959]
[1693406572307,5.9,1710.3,1710.2,2.0]
[1693406572598,10.35161197,1710.4,1710.2,2.0]
[1693406572599,7.35161197,1710.4,1710.2,2.0]
[1693406572804,8.62154933,1710.4,1710.2,7.84726]
[1693406573013,1.50482197,1710.4,1710.2,19.54178]
[1693406573222,7.10385758,1710.5,1710.4,2.0]
[1693406573223,5.9,1710.5,1710.4,2.0]
[1693406573391,5.9,1710.5,1710.4,7.84646]
[1693406573597,0.60192879,1710.6,1710.4,7.84646]
[1693406573817,0.60192879,1710.6,1710.4,19.53962]
[1693406574020,6.80289318,1710.7,1710.6,2.0]
[1693406574313,5.9,1710.7,1710.6,13.6918]
[1693406574512,0.101,1710.8,1710.6,19.5377]
[1693406575686,5.9,1710.7,1710.6,19.5377]
[1693406575888,0.101,1710.8,1710.6,19.5377]
[1693406576222,0.101,1710.8,1710.7,19.49045]
[1693406576720,0.101,1710.8,1710.7,25.61045]
[1693406577108,0.101,1710.8,1710.7,17.53668]
[1693406577736,0.101,1710.8,1710.7,11.69112]
[1693406578501,0.101,1710.8,1710.7,5.84556]
[1693406579192,0.101,1710.8,1710.7,11.69112]
[1693406579400,0.101,1710.8,1710.7,5.84556]
[1693406579922,0.32304172,1710.8,1710.7,5.84556]
[1693406580297,0.32304172,1710.8,1710.6,7.84559]
[1693406580996,5.9,1710.7,1710.6,13.69149]
[1693406581638,5.9,1710.7,1710.6,7.84559]
[1693406581796,7.40683017,1710.7,1710.6,7.84559]
[1693406582154,7.40683017,1710.7,1710.6,7.8459]
[1693406583007,13.25239017,1710.7,1710.6,2.0]
[1693406583201,21.97143082,1710.7,1710.4,2.0]
[1693406583402,11.74624,1710.5,1710.4,2.0]
[1693406584035,5.9,1710.5,1710.4,2.0]
[1693406584256,5.9,1710.5,1710.4,7.84658]
[1693406584401,8.77348065,1710.5,1710.4,2.0]
[1693406584750,28.20667862,1710.5,1710.2,2.0]
[1693406584906,14.74692,1710.3,1710.2,2.0]
[1693406585107,17.62040065,1710.3,1710.2,2.0]
[1693406586002,23.46732065,1710.3,1710.0,2.0]
[1693406586306,23.46732065,1710.3,1709.8,5.84855]
[1693406586307,5.9,1709.9,1709.8,2.0]
[1693406586624,14.62177065,1709.9,1709.8,2.0]
[1693406586818,23.47006065,1709.9,1709.8,2.0]
[1693406587539,29.31835065,1709.9,1709.8,2.0]
[1693406587745,32.25018572,1709.9,1709.8,2.0]
[1693406587929,26.40189572,1709.9,1709.8,2.0]
[1693406589548,32.25018572,1709.9,1709.8,2.0]
[1693406589715,8.9,1709.7,1709.6,2.0]
[1693406589912,14.74897,1709.7,1709.6,2.0]
[1693406590247,8.9,1709.7,1709.6,2.0]
[1693406590641,14.74897,1709.7,1709.6,2.0]
[1693406591035,8.9,1709.7,1709.6,2.0]
[1693406591662,5.9,1709.7,1709.6,13.69864]
[1693406591837,5.9,1709.7,1709.6,15.653453]
[1693406592754,5.9,1709.7,1709.6,13.69864]
[1693406594046,5.9,1709.7,1709.6,19.54796]
[1693406594749,6.1180611,1709.7,1709.6,19.54796]
[1693406595215,0.60256292,1710.9,1710.8,2.0]
[1693406595446,1.00484438,1711.0,1710.8,13.96521]
[1693406595447,0.101,1711.0,1710.8,13.96521]
[1693406595786,0.101,1711.0,1710.8,7.84521]
[1693406595991,0.101,1711.0,1710.8,2.0]
[1693406596146,6.550237,1711.0,1710.9,2.0]
[1693406596770,6.550237,1711.0,1710.7,2.0]
[1693406597088,0.101,1711.0,1710.9,2.0]
[1693406597253,0.101,1711.0,1710.9,7.84487]
[1693406597582,0.101,1711.0,1710.9,2.0]
[1693406597748,0.101,1711.0,1710.6,5.84584]
[1693406597749,0.101,1711.0,1710.5,7.84609]
[1693406597948,0.101,1711.0,1710.5,2.0]
[1693406598270,0.406,1711.0,1710.5,2.0]
[1693406598857,0.406,1711.0,1710.5,7.84621]
[1693406600871,0.406,1711.0,1710.6,2.0]
[1693406601278,0.406,1711.0,1710.6,7.84589]
[1693406601488,0.101,1711.0,1710.6,7.84589]
[1693406602378,0.101,1711.0,1710.9,2.0]
[1693406603312,0.101,1711.0,1710.6,2.0]
[1693406603873,0.101,1711.0,1710.8,2.0]
[1693406604610,0.101,1711.0,1710.6,7.84582]
[1693406604819,0.101,1711.0,1710.9,2.0]
[1693406605173,2.97448065,1711.0,1710.9,2.0]
[1693406605379,3.28202871,1711.0,1710.8,2.0]
[1693406605710,2.97448065,1711.0,1710.8,2.0]
[1693406607920,2.87348065,1710.9,1710.8,2.0]
[1693406608907,0.101,1711.0,1710.8,2.0]
[1693406609209,2.87448065,1711.0,1710.8,2.0]
[1693406610620,8.71902065,1711.0,1710.8,2.0]
[1693406610804,10.18545771,1711.0,1710.8,2.0]
[1693406611622,2.87348065,1710.9,1710.8,2.0]
[1693406613934,20.40809065,1710.9,1710.6,2.0]
[1693406614130,17.5368,1710.7,1710.4,2.0]
[1693406614376,11.84487,1710.9,1710.4,2.0]
[1693406614377,5.84624,1710.5,1710.4,2.0]
[1693406614528,10.47629672,1710.5,1710.2,2.0]
[1693406614729,5.84692,1710.3,1710.2,2.0]
[1693406614927,8.72040065,1710.3,1710.2,2.0]
[1693406615732,2.87348065,1710.3,1710.2,2.0]
[1693406615928,8.72040065,1710.3,1710.2,2.0]
[1693406616164,16.02402772,1710.3,1710.2,2.0]
[1693406617149,16.02402772,1710.3,1710.0,2.0]
[1693406617355,14.56832065,1710.2,1710.0,2.0]
[1693406617856,8.72077065,1710.2,1710.0,2.0]
[1693406618661,20.41529065,1710.2,1710.0,2.0]
[1693406618857,22.58435906,1710.1,1709.8,2.0]
[1693406619057,11.69658,1709.9,1709.8,2.0]
[1693406619373,14.57006065,1709.9,1709.8,2.0]
[1693406619573,20.41835065,1709.9,1709.8,2.0]
[1693406619870,14.57006065,1709.9,1709.8,2.0]
[1693406620072,8.72177065,1709.9,1709.8,2.0]
[1693406620446,2.87348065,1709.9,1709.8,2.0]
[1693406621141,14.57006065,1709.9,1709.8,2.0]
[1693406621447,16.61186872,1709.9,1709.8,2.0]
[1693406621875,16.61186872,1709.9,1709.6,2.0]
[1693406622077,8.72214065,1709.8,1709.6,2.0]
[1693406622976,14.57080065,1709.8,1709.6,2.0]
[1693406623489,20.41946065,1709.8,1709.6,2.0]
[1693406623640,13.73988607,1709.7,1709.6,2.0]
[1693406623842,16.61336672,1709.7,1709.6,2.0]
[1693406624182,16.61336672,1709.7,1709.4,2.0]
[1693406624364,2.87348065,1709.6,1709.4,2.0]
[1693406624566,8.72299065,1709.6,1709.4,2.0]
[1693406625080,2.87348065,1709.6,1709.4,2.0]
[1693406625496,2.87348065,1709.6,1709.4,7.84998]
[1693406625703,2.87348065,1709.6,1709.4,2.0]
[1693406626714,3.74572571,1709.6,1709.4,2.0]
[1693406627001,15.44436571,1709.6,1709.4,2.0]
[1693406628399,15.44436571,1709.6,1709.5,2.0]
[1693406628780,15.44436571,1709.6,1709.2,7.85067]
[1693406628976,15.44436571,1709.6,1709.4,2.0]
[1693406629175,1.54443657,1709.5,1709.4,2.0]
[1693406629501,24.96689722,1709.5,1709.0,2.107]
[1693406629706,2.87348065,1709.4,1709.0,2.107]
[1693406629996,20.55123,1709.3,1709.0,0.107]
[1693406630196,17.55309,1709.1,1709.0,0.107]
[1693406630399,20.42657065,1709.1,1709.0,0.107]
[1693406630605,25.42157065,1709.1,1709.0,0.107]
[1693406631705,5.85013,1709.4,1709.1,2.0]
[1693406631905,23.42450065,1709.3,1709.1,2.0]
[1693406632508,23.42450065,1709.3,1709.0,0.107]
[1693406632811,4.86848065,1709.2,1709.0,0.107]
[1693406633031,22.42157065,1709.1,1709.0,0.107]
[1693406633235,25.42157065,1709.1,1709.0,0.107]
[1693406633397,28.54881972,1709.1,1709.0,0.107]
[1693406634005,26.55381972,1709.1,1709.0,0.107]
[1693406635028,23.42657065,1709.1,1709.0,0.107]
[1693406635270,8.72451065,1709.1,1709.0,0.107]
[1693406635898,14.57554065,1709.1,1709.0,0.107]
[1693406636298,20.42657065,1709.1,1709.0,0.107]
[1693406636548,23.42657065,1709.1,1709.0,0.107]
[1693406636849,32.70483872,1709.1,1709.0,0.107]
[1693406638802,34.69983872,1709.1,1709.0,0.107]
[1693406639121,35.17983872,1709.1,1709.0,0.107]
[1693406639322,36.18483872,1709.1,1709.0,0.107]
[1693406639542,35.70483872,1709.1,1709.0,0.107]
[1693406639998,1.995,1709.0,1708.4,2.0]
[1693406640200,17.55924,1708.5,1708.2,2.1]
[1693406640397,5.85377,1708.3,1708.2,2.1]
[1693406640611,14.58102065,1708.3,1708.2,2.1]
[1693406640811,20.43479065,1708.3,1708.2,2.1]
[1693406642552,25.77826972,1708.3,1708.2,2.1]
[1693406642711,25.77826972,1708.3,1708.2,0.1]
[1693406642911,5.85353,1708.4,1708.2,2.1]
[1693406643111,2.87348065,1708.4,1708.2,2.1]
[1693406643517,8.72725065,1708.3,1708.2,2.1]
[1693406643711,20.43479065,1708.3,1708.2,2.1]
[1693406643959,5.85377,1708.3,1708.2,2.1]
[1693406644168,11.70558,1708.6,1708.5,2.0]
[1693406644312,23.43188065,1708.6,1708.5,2.0]
[1693406644767,25.65908088,1708.6,1708.5,2.0]
[1693406645320,19.80624088,1708.6,1708.5,2.0]
[1693406645664,17.57896065,1708.6,1708.5,2.0]
[1693406645815,11.72622065,1708.6,1708.5,2.0]
[1693406646017,23.43170065,1708.6,1708.5,2.0]
[1693406646612,17.57896065,1708.6,1708.5,2.0]
[1693406646812,2.87348065,1708.6,1708.5,7.85308]
[1693406647044,0.46325583,1708.7,1708.5,3.370637]
[1693406647238,2.87348065,1708.7,1708.5,9.223717]
[1693406647655,0.46672486,1708.8,1708.7,2.0]
[1693406647851,11.70236,1709.1,1709.0,2.0]
[1693406648063,14.57584065,1709.1,1709.0,2.0]
[1693406648778,15.04621658,1709.1,1709.0,2.0]
[1693406649126,3.34385658,1709.1,1709.0,2.0]
[1693406649330,2.87348065,1709.1,1709.0,2.0]
[1693406649569,11.52,1709.3,1709.2,2.0]
[1693406649765,26.09416065,1709.3,1709.2,2.0]
[1693406649964,31.94450065,1709.3,1709.2,2.0]
[1693406650367,26.09416065,1709.3,1709.2,2.0]
[1693406650531,14.39348065,1709.3,1709.2,2.0]
[1693406650734,11.52,1709.3,1709.2,8.635781]
[1693406650958,14.39348065,1709.3,1709.2,2.785091]
[1693406651162,20.24382065,1709.3,1709.2,2.0]
[1693406651351,31.94450065,1709.3,1709.2,2.0]
[1693406651967,36.93950065,1709.3,1709.0,2.0]
[1693406652167,4.86848065,1709.1,1708.8,2.0]
[1693406652370,4.86848065,1709.1,1708.6,2.0]
[1693406652371,22.90943872,1709.0,1708.6,2.0]
[1693406652664,17.55615,1708.8,1708.6,2.0]
[1693406652867,20.43068065,1708.7,1708.6,2.0]
[1693406653069,20.43068065,1708.7,1708.4,2.0]
[1693406653432,17.55924,1708.5,1708.4,2.0]
[1693406653634,20.43272065,1708.5,1708.4,2.0]